Workbook

Sheet Data Entry Backup (hidden)
B2: Profit Gap Manual Entry Form
C6: Your Name: | D6: John Doe
C7: Company Name: | D7: John's Diner
C8: Email Address: | D8: johndoe@email.com
C9: 2007 NAICS Code: | D9: 243545 | J9: Protection Password="protect"
C10: Phone: | D10: 707-587-2341
C11: Ending date of report: | D11: 2015-03-31
C12: Report Password: | D12: password
C14: Accounts | E14: Date
E15: Starting Period | F15: 1 | G15: 2 | H15: 3 | I15: 4 | J15: 5 | K15: 6 | L15: 7 | M15: 8 | N15: 9 | O15: 10 | P15: 11 | Q15: 12 | R15: 13
E16: =DATE(YEAR($R$16),MONTH($R$16)-12,0) -> 2014-02-28 | F16: =DATE(YEAR($R$16),MONTH($R$16)-(12-F15),0) -> 2014-03-31 | G16: 2014-04-30 | H16: 2014-05-31 | I16: 2014-06-30 | J16: 2014-07-31 | K16: 2014-08-31 | L16: 2014-09-30 | M16: 2014-10-31 | N16: 2014-11-30 | O16: 2014-12-31 | P16: 2015-01-31 | Q16: =DATE(YEAR($R$16),MONTH($R$16)-(12-Q15),0) -> 2015-02-28 | R16: =D11 -> 2015-03-31
A17: Balance Sheet | B17: Assets | C17: Cash | E17: 148155.79 | F17: 211444.4433 | G17: 10000 | H17: 136100.6147 | I17: 12472.02797 | J17: 15844 | K17: 65077 | L17: 31282.07845 | M17: 6864 | N17: 12809 | O17: 23903 | P17: 10771 | Q17: 52755.35557 | R17: 13777.00799
C18: Receivables | E18: 900000 | F18: 850000 | G18: 973600 | H18: 1000000 | I18: 1065000 | J18: 1000100 | K18: 1005000 | L18: 1105000 | M18: 1015000 | N18: 1005000 | O18: 1010000 | P18: 1035000 | Q18: 900000 | R18: 900056
C19: Inventory | E19: 450000 | F19: 462000 | G19: 523000 | H19: 467800 | I19: 554800 | J19: 677000 | K19: 544000 | L19: 557750 | M19: 643350 | N19: 607500 | O19: 554000 | P19: 555000 | Q19: 639000 | R19: 650000
C20: Other Operating Assets | E20: 10122.72 | F20: 9298.89 | G20: 8475.06 | H20: 7651.23 | I20: 10000 | J20: 24255.65 | K20: 27481.82 | L20: 26657.99 | M20: 28249.16 | N20: 28510.33 | O20: 27686.5 | P20: 26862.67 | Q20: 20000 | R20: 29265.01
C21: Notes Receivable Trade | E21: 0 | F21: 0 | G21: 1 | H21: 0 | I21: 500 | J21: 0 | K21: 0 | L21: 1 | M21: 0 | N21: 0 | O21: 0 | P21: 0 | Q21: 0 | R21: 20
C22: Gross Fixed Assets | D22: Land & Buildings | E22: 415000 | F22: 415000 | G22: 415000 | H22: 415000 | I22: 415000 | J22: 415000 | K22: 415000 | L22: 415000 | M22: 415000 | N22: 415000 | O22: 415000 | P22: 415000 | Q22: 415000 | R22: 415000
D23: All other | E23: 425000 | F23: 425000 | G23: 425000 | H23: 425000 | I23: 425000 | J23: 425000 | K23: 425000 | L23: 425000 | M23: 425000 | N23: 425000 | O23: 425000 | P23: 425000 | Q23: 425000 | R23: 425000
C24: Accumulated Depreciation (Negative Value) | E24: -65908.69 | F24: -70908.69 | G24: -75908.69 | H24: -80908.69 | I24: -85908.69 | J24: -90908.69 | K24: -95908.69 | L24: -100908.69 | M24: -105908.69 | N24: -110908.69 | O24: -115908.69 | P24: -120908.69 | Q24: -125908.69 | R24: -130908.69
C25: Net Fixed Assets | E25: =E22+E23+E24 -> 774091.31 | F25: =F22+F23+F24 -> 769091.31 | G25: 764091.31 | H25: 759091.31 | I25: 754091.31 | J25: 749091.31 | K25: 744091.31 | L25: 739091.31 | M25: 734091.31 | N25: 729091.31 | O25: 724091.31 | P25: 719091.31 | Q25: 714091.31 | R25: 709091.31
C26: Other Assets | E26: 50000 | F26: 50000 | G26: 50000 | H26: 50000 | I26: 50000 | J26: 50000 | K26: 50000 | L26: 50000 | M26: 50000 | N26: 50000 | O26: 50000 | P26: 50000 | Q26: 50000 | R26: 50000
C27: Total Assets | E27: =SUM(E17:E21)+E25+E26 -> 2332369.82 | F27: =SUM(F17:F21)+F25+F26 -> 2351834.643 | G27: 2329167.37 | H27: 2420643.155 | I27: 2446863.338 | J27: 2516290.96 | K27: 2435650.13 | L27: 2509782.378 | M27: 2477554.47 | N27: 2432910.64 | O27: 2389680.81 | P27: 2396724.98 | Q27: 2375846.666 | R27: 2352209.328
B29: Liabilities | C29: Accounts Payables | E29: 210000 | F29: 252000 | G29: 187000 | H29: 180000 | I29: 300000 | J29: 350000 | K29: 174000 | L29: 243750 | M29: 360000 | N29: 250000 | O29: 260000 | P29: 275000 | Q29: 260000 | R29: 250000
C30: Debt (short term <1yr) | E30: 350000 | F30: 340000 | G30: 350000 | H30: 450000 | I30: 350000 | J30: 350000 | K30: 450000 | L30: 480000 | M30: 350000 | N30: 425000 | O30: 350000 | P30: 350000 | Q30: 350000 | R30: 350000
C31: Debt (long term >1yr) | E31: 800000 | F31: 784000 | G31: 768320 | H31: 752953.6 | I31: 737894.528 | J31: 723136.6374 | K31: 708673.9047 | L31: 694500.4266 | M31: 680610.4181 | N31: 666998.2097 | O31: 653658.2455 | P31: 640585.0806 | Q31: 627773.379 | R31: 615217.9114
C32: Other Operating Liabilities | E32: 0 | F32: 0 | G32: 0 | H32: 0 | I32: 0 | J32: 0 | K32: 0 | L32: 3602.23 | M32: 3624.27 | N32: 3811.91 | O32: 3541.95 | P32: 3442.47 | Q32: 4951.03 | R32: 3346.59
C33: Tax Due | E33: 0 | F33: 161.49 | G33: 0 | H33: 0 | I33: 599.65 | J33: 102.53 | K33: 72.18 | L33: 319.21 | M33: 517.61 | N33: 105.51 | O33: 288.02 | P33: 304.63 | Q33: 527.25 | R33: 973.82
C34: Non Operating Liabilities | E34: 0 | F34: 0 | G34: 0 | H34: 0 | I34: 0 | J34: 0 | K34: 0 | L34: 0 | M34: 0 | N34: 0 | O34: 0 | P34: 0 | Q34: 0 | R34: 458
C35: Total Liabilities | E35: =SUM(E29:E34) -> 1360000 | F35: =SUM(F29:F34) -> 1376161.49 | G35: 1305320 | H35: 1382953.6 | I35: 1388494.178 | J35: 1423239.167 | K35: 1332746.085 | L35: 1422171.867 | M35: 1394752.298 | N35: 1345915.63 | O35: 1267488.216 | P35: 1269332.181 | Q35: 1243251.659 | R35: 1219996.321
B36: Equity | C36: Stock / Owners’ Equity / Beginning Capital | E36: 850000 | F36: 850000 | G36: 850000 | H36: 850000 | I36: 850000 | J36: 850000 | K36: 850000 | L36: 850000 | M36: 850000 | N36: 850000 | O36: 850000 | P36: 850000 | Q36: 850000 | R36: 850000
C37: Retained Earnings | E37: 122370 | F37: 125673.3333 | G37: 173846.6 | H37: 187689.7347 | I37: 207869.34 | J37: 243052.0198 | K37: 252904.3794 | L37: 237609.6919 | M37: 232801.2314 | N37: 236995.6067 | O37: 272192.7613 | P37: 277392.6394 | Q37: 282595.1866 | R37: 282595.1866
C38: Total Equity | E38: =E36+E37 -> 972370 | F38: =F36+F37 -> 975673.3333 | G38: 1023846.6 | H38: 1037689.735 | I38: 1057869.34 | J38: 1093052.02 | K38: 1102904.379 | L38: 1087609.692 | M38: 1082801.231 | N38: 1086995.607 | O38: 1122192.761 | P38: 1127392.639 | Q38: 1132595.187 | R38: 1132595.187
C39: Total Liability + Equity | E39: =E35+E38 -> 2332370 | F39: =F35+F38 -> 2351834.823 | G39: 2329166.6 | H39: 2420643.335 | I39: 2446363.518 | J39: 2516291.187 | K39: 2435650.464 | L39: 2509781.558 | M39: 2477553.529 | N39: 2432911.236 | O39: 2389680.977 | P39: 2396724.82 | Q39: 2375846.846 | R39: 2352591.508
C40: Balance Sheet Balanced? | E40: =IFERROR(IF((ABS(ROUND(E27,0)-ROUND(E39,0)))>=1,CONCATENATE("No by ",(ROUND(E27,0)-ROUND(E39,0))),"Yes"),"") -> Yes | F40: =IFERROR(IF((ABS(ROUND(F27,0)-ROUND(F39,0)))>=1,CONCATENATE("No by ",(ROUND(F27,0)-ROUND(F39,0))),"Yes"),"") -> Yes | G40: Yes | H40: Yes | I40: No by 499 | J40: Yes | K40: Yes | L40: Yes | M40: Yes | N40: Yes | O40: Yes | P40: Yes | Q40: Yes | R40: No by -383
A43: Income Statement | C43: Sales | E43: NA | F43: 350000 | G43: 360000 | H43: 340000 | I43: 300000 | J43: 425000 | K43: 490000 | L43: 290000 | M43: 325000 | N43: 450000 | O43: 360000 | P43: 400000 | Q43: 395000 | R43: 375000
C44: COGS | E44: NA | F44: 210000 | G44: 252000 | H44: 187000 | I44: 180000 | J44: 300000 | K44: 350000 | L44: 174000 | M44: 243750 | N44: 340000 | O44: 250000 | P44: 260000 | Q44: 275000 | R44: 265000
C45: Gross Margin | E45: NA | F45: =F43-F44 -> 140000 | G45: =G43-G44 -> 108000 | H45: 153000 | I45: 120000 | J45: 125000 | K45: 140000 | L45: 116000 | M45: 81250 | N45: 110000 | O45: 110000 | P45: 140000 | Q45: 120000 | R45: 110000
C46: Other Variable Costs i.e. commissions | E46: NA | F46: 17500 | G46: 18000 | H46: 17000 | I46: 15000 | J46: 21250 | K46: 24500 | L46: 14500 | M46: 16250 | N46: 22500 | O46: 18000 | P46: 20000 | Q46: 18750 | R46: 17500
C47: Marketing, Sales, G&A | E47: NA | F47: 100000 | G47: 100000 | H47: 100000 | I47: 100000 | J47: 100000 | K47: 100000 | L47: 100000 | M47: 90000 | N47: 90000 | O47: 100000 | P47: 100000 | Q47: 90000 | R47: 80000
C48: Depreciation & Amortization | E48: NA | F48: 5000 | G48: 5000 | H48: 5000 | I48: 5000 | J48: 5000 | K48: 5000 | L48: 5000 | M48: 5000 | N48: 5000 | O48: 5000 | P48: 5000 | Q48: 5000 | R48: 5000
C49: Interest Expense | E49: NA | F49: 4833.333333 | G49: 4696.666667 | H49: 4826.733333 | I49: 6156.865333 | J49: 4820.394693 | K49: 4817.320133 | L49: 6147.640397 | M49: 6544.687589 | N49: 4808.460504 | O49: 5805.624627 | P49: 4802.845468 | Q49: 4800.121892 | R49: 4797.452787
C50: Tax Expense | E50: NA | F50: 12458 | G50: 0 | H50: 0 | I50: 10458 | J50: 0 | K50: 0 | L50: 13458 | M50: 0 | N50: 0 | O50: 14458 | P50: 0 | Q50: 0 | R50: 10458
C51: Other Income | E51: NA | F51: 500 | G51: 15000 | H51: 2540 | I51: 87351 | J51: 6888 | K51: 5874 | L51: 29004 | M51: 4587 | N51: 24485 | O51: 4 | P51: 14587 | Q51: 1587 | R51: 15478
C52: Net Profit | E52: NA | F52: =F45-SUM(F46:F50)+F51 -> 708.6666667 | G52: =G45-SUM(G46:G50)+G51 -> -4696.666667 | H52: 28713.26667 | I52: 70736.13467 | J52: 817.6053067 | K52: 11556.67987 | L52: 5898.359603 | M52: -31957.68759 | N52: 12176.5395 | O52: -33259.62463 | P52: 24784.15453 | Q52: 3036.878108 | R52: 7722.547213
C56: Company Name | D56: Date of last report
C57: ='Data Entry'!E59 -> 0 | D57: ='Data Entry'!#REF! -> 
C59: Metric | D59: Last report Actuals | E59: Current Goal Can be Adjusted* | F59: Industry Averages
F60: Top | H60: Median | I60: Bottom
F61: 0.1 | G61: 0.25 | H61: 0.5 | I61: 0.25 | J61: 0.1
C62: Current Ratio | D62: 2.634217743 | E62: 5 | F62: 5 | G62: 3 | H62: 1.3 | I62: 1 | J62: 0.8
C63: Quick Ratio | D63: 1.511021215 | E63: 5 | F63: 5 | G63: 2.5 | H63: 1.1 | I63: 0.8 | J63: 0.7
C64: Debt-to-Worth | D64: 1.151248913 | E64: 0.2 | F64: 0.2 | G64: 0.5 | H64: 1 | I64: 1.1 | J64: 1.3
C65: Gross Margin | D65: 0.2933333333 | E65: 0.82 | F65: 0.82 | G65: 0.75 | H65: 0.6 | I65: 0.32 | J65: 0.076
C66: Net Margin | D66: 0.07446691847 | E66: 0.45 | F66: 0.45 | G66: 0.19 | H66: 0.04 | I66: 0.02 | J66: 0.005
C67: Sale to Assets | D67: 2.012966436 | E67: 8 | F67: 8 | G67: 6 | H67: 2 | I67: 0.9 | J67: 0.75
C68: Return on Assets | D68: 0.08498014758 | E68: 1.5 | F68: 1.5 | G68: 1 | H68: 0.4 | I68: 0.25 | J68: 0.1
C69: Return on Investments | D69: 0.1828134501 | E69: 3.12 | F69: 3.12 | G69: 2.3 | H69: 1.2 | I69: 0.55 | J69: 0.34
C70: Inventory Turnover | E70: 30.41666667 | F70: 30.41666667 | G70: 17.38095238 | H70: 10.42857143 | I70: 9.125 | J70: 8.111111111
C71: Inventory Turn-Days | D71: 73.58490566 | E71: 12 | F71: 12 | G71: 21 | H71: 35 | I71: 40 | J71: 45
C72: Accounts Receivable Turnover | E72: 73 | F72: 73 | G72: 24.33333333 | H72: 18.25 | I72: 12.16666667 | J72: 9.125
C73: Accounts Receivable Turn-Days | D73: 72.00448 | E73: 5 | F73: 5 | G73: 15 | H73: 20 | I73: 30 | J73: 40
C74: Accounts Payable Turnover | E74: 6.636363636 | F74: 6.636363636 | G74: 12.16666667 | H74: 121.6666667 | I74: 365 | J74: ∞
C75: Average Payment Period | D75: 28.30188679 | E75: 55 | F75: 55 | G75: 30 | H75: 3 | I75: 1 | J75: 0
O96: 7

Sheet Data Entry
A2: FinancialSoft Manual Entry Form
A6: Your Name: | D6: John Doe
A7: Company Name: | D7: John's Diner
A8: Email Address: | D8: johndoe@email.com
A9: 2012 NAICS Code: | D9: 332813
A10: Phone: | D10: 707-587-2341
A11: Ending date of report: | D11: 2016-03-31
A12: Report Password: | D12: password
C14: Accounts | E14: Date
E15: Starting Period | F15: 1 | G15: 2 | H15: 3 | I15: 4 | J15: 5 | K15: 6 | L15: 7 | M15: 8 | N15: 9 | O15: 10 | P15: 11 | Q15: 12 | R15: 13
E16: =IFERROR((DATE(YEAR($R$16),MONTH($R$16)-12,0)),"") -> 2015-02-28 | F16: =IFERROR((DATE(YEAR($R$16),MONTH($R$16)-(12-F15),0)),"") -> 2015-03-31 | G16: =IFERROR((DATE(YEAR($R$16),MONTH($R$16)-(12-G15),0)),"") -> 2015-04-30 | H16: 2015-05-31 | I16: 2015-06-30 | J16: 2015-07-31 | K16: 2015-08-31 | L16: 2015-09-30 | M16: 2015-10-31 | N16: 2015-11-30 | O16: 2015-12-31 | P16: 2016-01-31 | Q16: =IFERROR((DATE(YEAR($R$16),MONTH($R$16)-(12-Q15),0)),"") -> 2016-02-29 | R16: =IF(D11="","",D11) -> 2016-03-31
A17: Balance Sheet | B17: Assets | C17: Cash | E17: 148155.79 | F17: 215154 | G17: 10000 | H17: 136100.6147 | I17: 12472.02797 | J17: 15844 | K17: 65077 | L17: 31282.07845 | M17: 6864 | N17: 12809 | O17: 23903 | P17: 10771 | Q17: 52755.35557 | R17: 13777.00799
C18: Receivables | E18: 339999.9 | F18: 250918.51 | G18: 344498.69 | H18: 315579.2087 | I18: 308917.9927 | J18: 161448.3407 | K18: 247117.9677 | L18: 211777.1304 | M18: 68616.82511 | N18: 65292.69574 | O18: 32831.48229 | P18: 57284.62645 | Q18: 15388.32549 | R18: 31280.29991
C19: Inventory | E19: 450000 | F19: 462000 | G19: 523000 | H19: 467800 | I19: 554800 | J19: 677000 | K19: 544000 | L19: 557750 | M19: 643350 | N19: 607500 | O19: 554000 | P19: 555000 | Q19: 550000 | R19: 550000
C20: Other Current Assets | E20: 2541 | F20: 2541 | G20: 2541 | H20: 2541 | I20: 2541 | J20: 2541 | K20: 2541 | L20: 2541 | M20: 2541 | N20: 2541 | O20: 2541 | P20: 2541 | Q20: 2541 | R20: 2541
C21: Total Current Assets (from above) | E21: =E17+E18+E19+E20 -> 940696.69 | F21: =F17+F18+F19+F20 -> 930613.51 | G21: 880039.69 | H21: 922020.8233 | I21: 878731.0207 | J21: 856833.3407 | K21: 858735.9677 | L21: 803350.2088 | M21: 721371.8251 | N21: 688142.6957 | O21: 613275.4823 | P21: 625596.6264 | Q21: 620684.6811 | R21: 597598.3079
C22: Total Other Assets | E22: 0 | F22: 38582.00333 | G22: 69102.31 | H22: 124420.7913 | I22: 196582.0073 | J22: 279150.6593 | K22: 197882.0323 | L22: 333223.8696 | M22: 386383.1749 | N22: 379707.3043 | O22: 417168.5177 | P22: 417715.3736 | Q22: 413611.6745 | R22: 408795.7001
C23: Fixed Assets Depreciated | D23: Land & Buildings | E23: 415000 | F23: 415000 | G23: 415000 | H23: 415000 | I23: 415000 | J23: 415000 | K23: 415000 | L23: 415000 | M23: 415000 | N23: 415000 | O23: 415000 | P23: 415000 | Q23: 415000 | R23: 415000
D24: All other | E24: 359091.31 | F24: 354091.31 | G24: 349091.31 | H24: 344091.31 | I24: 339091.31 | J24: 334091.31 | K24: 329091.31 | L24: 324091.31 | M24: 319091.31 | N24: 314091.31 | O24: 309091.31 | P24: 304091.31 | Q24: 299091.31 | R24: 294091.31
C25: Net Fixed Assets | E25: =E23+E24 -> 774091.31 | F25: =F23+F24 -> 769091.31 | G25: 764091.31 | H25: 759091.31 | I25: 754091.31 | J25: 749091.31 | K25: 744091.31 | L25: 739091.31 | M25: 734091.31 | N25: 729091.31 | O25: 724091.31 | P25: 719091.31 | Q25: 714091.31 | R25: 709091.31
C26: Total Assets | E26: =E21+E22+E25 -> 1714788 | F26: =F21+F22+F25 -> 1738286.823 | G26: 1713233.31 | H26: 1805532.925 | I26: 1829404.338 | J26: 1885075.31 | K26: 1800709.31 | L26: 1875665.388 | M26: 1841846.31 | N26: 1796941.31 | O26: 1754535.31 | P26: 1762403.31 | Q26: 1748387.666 | R26: 1715485.318
B28: Liabilities | C28: Accounts Payables | E28: 210000 | F28: 252000 | G28: 187000 | H28: 180000 | I28: 300000 | J28: 350000 | K28: 174000 | L28: 243750 | M28: 360000 | N28: 250000 | O28: 260000 | P28: 275000 | Q28: 260000 | R28: 250000
C29: Debt (short term <1yr) | E29: 350000 | F29: 340000 | G29: 350000 | H29: 450000 | I29: 350000 | J29: 350000 | K29: 450000 | L29: 480000 | M29: 350000 | N29: 425000 | O29: 350000 | P29: 350000 | Q29: 350000 | R29: 350000
C30: Tax Due | E30: 0 | F30: 161.49 | G30: 0 | H30: 0 | I30: 599.65 | J30: 102.53 | K30: 72.18 | L30: 319.21 | M30: 517.61 | N30: 105.51 | O30: 288.02 | P30: 304.63 | Q30: 527.25 | R30: 973.82
C31: Total Other Current Liabilities | E31: 0 | F31: 6920 | G31: 92101.31 | H31: 54420.79133 | I31: 105981.3573 | J31: 138549.1293 | K31: 133809.8523 | L31: 169153.6596 | M31: 235865.5649 | N31: 264601.7943 | O31: 366880.4977 | P31: 352410.7436 | Q31: 363084.4245 | R31: 367801.8801
C32: Total Current Liabilities | E32: =E28+E29+E30+E31 -> 560000 | F32: =F28+F29+F30+F31 -> 599081.49 | G32: 629101.31 | H32: 684420.7913 | I32: 756581.0073 | J32: 838651.6593 | K32: 757882.0323 | L32: 893222.8696 | M32: 946383.1749 | N32: 939707.3043 | O32: 977168.5177 | P32: 977715.3736 | Q32: 973611.6745 | R32: 968775.7001
C33: Long Term Liabilities | E33: 802541 | F33: 786541 | G33: 770861 | H33: 755494.6 | I33: 740435.528 | J33: 725677.6374 | K33: 711214.9047 | L33: 697041.4266 | M33: 683151.4181 | N33: 669539.2097 | O33: 656199.2455 | P33: 643126.0806 | Q33: 630314.379 | R33: 617758.9114
C34: Total Liabilities | E34: =E32+E33 -> 1362541 | F34: =F32+F33 -> 1385622.49 | G34: 1399962.31 | H34: 1439915.391 | I34: 1497016.535 | J34: 1564329.297 | K34: 1469096.937 | L34: 1590264.296 | M34: 1629534.593 | N34: 1609246.514 | O34: 1633367.763 | P34: 1620841.454 | Q34: 1603926.054 | R34: 1586534.611
B35: Equity | C35: Total Equity (Net Worth) | E35: 352247 | F35: 352664.3333 | G35: 313271 | H35: 365617.5333 | I35: 332387.8027 | J35: 320247.0133 | K35: 331612.373 | L35: 285401.0922 | M35: 212311.717 | N35: 187694.796 | O35: 121167.5468 | P35: 141561.8558 | Q35: 144461.6121 | R35: 128950.7065
B36: Total Liability + Equity | E36: =E34+E35 -> 1714788 | F36: =F34+F35 -> 1738286.823 | G36: 1713233.31 | H36: 1805532.925 | I36: 1829404.338 | J36: 1884576.31 | K36: 1800709.31 | L36: 1875665.388 | M36: 1841846.31 | N36: 1796941.31 | O36: 1754535.31 | P36: 1762403.31 | Q36: 1748387.666 | R36: 1715485.318
B37: Balance Sheet Balanced? | E37: =IFERROR(IF((ABS(ROUND(E26,0)-ROUND(E36,0)))>=1,CONCATENATE("No by ",(ROUND(E26,0)-ROUND(E36,0))),"Yes"),"") -> Yes | F37: =IFERROR(IF((ABS(ROUND(F26,0)-ROUND(F36,0)))>=1,CONCATENATE("No by ",(ROUND(F26,0)-ROUND(F36,0))),"Yes"),"") -> Yes | G37: Yes | H37: Yes | I37: Yes | J37: No by 499 | K37: Yes | L37: Yes | M37: Yes | N37: Yes | O37: Yes | P37: Yes | Q37: Yes | R37: Yes
D39: Dates: | F39: =F16 -> 2015-03-31 | G39: 2015-04-30 | H39: 2015-05-31 | I39: 2015-06-30 | J39: 2015-07-31 | K39: 2015-08-31 | L39: 2015-09-30 | M39: 2015-10-31 | N39: 2015-11-30 | O39: 2015-12-31 | P39: 2016-01-31 | Q39: 2016-02-29 | R39: 2016-03-31
A40: Income Statement | C40: Sales | E40: NA | F40: 350000 | G40: 360000 | H40: 340000 | I40: 300000 | J40: 425000 | K40: 490000 | L40: 290000 | M40: 325000 | N40: 450000 | O40: 360000 | P40: 400000 | Q40: 395000 | R40: 375000
C41: COGS | E41: NA | F41: 210000 | G41: 252000 | H41: 187000 | I41: 180000 | J41: 300000 | K41: 350000 | L41: 174000 | M41: 243750 | N41: 340000 | O41: 250000 | P41: 260000 | Q41: 275000 | R41: 265000
C42: Gross Margin | E42: NA | F42: =F40-F41 -> 140000 | G42: =G40-G41 -> 108000 | H42: 153000 | I42: 120000 | J42: 125000 | K42: 140000 | L42: 116000 | M42: 81250 | N42: 110000 | O42: 110000 | P42: 140000 | Q42: 120000 | R42: 110000
C43: Other Variable Costs not in COGS | E43: NA | F43: 17500 | G43: 18000 | H43: 17000 | I43: 15000 | J43: 21250 | K43: 24500 | L43: 14500 | M43: 16250 | N43: 22500 | O43: 18000 | P43: 20000 | Q43: 18750 | R43: 17500
C44: Marketing, Sales, G&A | E44: NA | F44: 100000 | G44: 100000 | H44: 100000 | I44: 100000 | J44: 100000 | K44: 100000 | L44: 100000 | M44: 90000 | N44: 90000 | O44: 100000 | P44: 100000 | Q44: 90000 | R44: 80000
C45: Depreciation & Amortization | E45: NA | F45: 5000 | G45: 5000 | H45: 5000 | I45: 5000 | J45: 5000 | K45: 5000 | L45: 5000 | M45: 5000 | N45: 5000 | O45: 5000 | P45: 5000 | Q45: 5000 | R45: 5000
C46: Interest Expense | E46: NA | F46: 4833.333333 | G46: 4696.666667 | H46: 4826.733333 | I46: 6156.865333 | J46: 4820.394693 | K46: 4817.320133 | L46: 6147.640397 | M46: 6544.687589 | N46: 4808.460504 | O46: 5805.624627 | P46: 4802.845468 | Q46: 4800.121892 | R46: 4797.452787
C47: Tax Expense | E47: NA | F47: 12458 | G47: 0 | H47: 0 | I47: 10458 | J47: 0 | K47: 0 | L47: 13458 | M47: 0 | N47: 0 | O47: 14458 | P47: 0 | Q47: 0 | R47: 10458
C48: Other Expense | E48: NA | F48: 500 | G48: 15000 | H48: 2540 | I48: 87351 | J48: 6888 | K48: 5874 | L48: 29004 | M48: 4587 | N48: 24485 | O48: 4 | P48: 14587 | Q48: 1587 | R48: 15478
C49: Total Expense | E49: NA | F49: =SUM(F43:F48) -> 140291.3333 | G49: =SUM(G43:G48) -> 142696.6667 | H49: 129366.7333 | I49: 223965.8653 | J49: 137958.3947 | K49: 140191.3201 | L49: 168109.6404 | M49: 122381.6876 | N49: 146793.4605 | O49: 143267.6246 | P49: 144389.8455 | Q49: 120137.1219 | R49: 133233.4528
C50: Other Income | E50: NA | F50: 708.6666667 | G50: -4696.666667 | H50: 28713.26667 | I50: 70736.13467 | J50: 817.6053067 | K50: 11556.67987 | L50: 5898.359603 | M50: -31957.68759 | N50: 12176.5395 | O50: -33259.62463 | P50: 24784.15453 | Q50: 3036.878108 | R50: 7722.547213
C51: Net Profit | E51: NA | F51: =F42-SUM(F43:F48)+F50 -> 417.3333333 | G51: =G42-SUM(G43:G48)+G50 -> -39393.33333 | H51: =H42-SUM(H43:H48)+H50 -> 52346.53333 | I51: -33229.73067 | J51: -12140.78939 | K51: 11365.35973 | L51: -46211.28079 | M51: -73089.37518 | N51: -24616.92101 | O51: -66527.24925 | P51: 20394.30906 | Q51: 2899.756216 | R51: -15510.90557
R52: v21.11
C53: Notes on form behavior:
C54: 1. Only the cells where you can enter data can be selected.
C55: 2. When you mouse over the account name, a comment box will appear showing you the definition of the account.
C56: 3. The date entered in cell to the right of "Ending date of report:" is the date you most recently completed entering data into your financial software.
C57: 4. The date entered in cell to the right of "Ending date of report:" will automatically populate the Date cells below the "Periods."
C58: 5. The cells in "Grey" are automatically calculated for you.
C59: 6. The "Balance Sheet Balanced?" tells you if your Balance Sheet is balanced Assets = Liabilities + Equity.
C60: 6a. "Yes" means it is balanced. --> | E60: Yes
C61: 6b. A red number with a yellow background... | F61: No by 499 | G61: tells you how far the balance is off. A positive number means the Assets are greater than the Liabilities + Equity, if negative Liabilities + Equity are greater than the Assets.
C62: 7. The Red "Clear Form" button at the top right side of the form clears all the cell data.
C63: 8. The Red "Shift Data 1 Month" button at the top right side of the form moves last month data over one month so only the last column (month books are closed) needs to be entered.
C64: 9. "NA" in the Starting Period in the Income Statement column represents there is no data to be entered.

Sheet Instructions
B2: Instructions
B3: This form, once completed and submitted to FinancialSoft, will allow non-QuickBooks users to generate FinancialSoft Financial Analysis reports.
B4: Completing this form can be as simple as a copy and paste from another spreadsheet that displays your company’s financial statements.
B5: If this is your first report click the red Clear Form button at the top right of the form. This will clear out all the entrees in the form. The following numbered steps take you through the data entry process:
B6: If this is not your first report and the data on the "Data Enter" tab is correct for last month and needs to be moved over 1 month* select the green "Shift Data 1 Month" button at the top of the form then go to step 2 below.
B7: *NOTE: If this is not your first report but you have fallen behind by more than one month, clicking the "Shift Data 1 Month" button at the top of the form will move the data 1 month per click. So if you are two months behind, click the button twice, three month behind click the button three times, let the program complete after each click...
B8: 1. Complete the top form
B9: a. Your Name: Name that will appear on the report
B10: b. Company Name: Company Name that will appear on the report
B11: c. Email Address: email address where the report will be sent
B12: d. | D12: 2012 NAICS Code: This is where you enter your industry NAICS code so the financial analysis report can compare your data to your industry. If you do not know your NACIS code select the link to the right marked “Find your NACIS Code.” This, when connect to the internet, will open a window in your browser. In the browser window enter your industry type to search for a similar industry shown below where indicated by the red arrow.
B16: e. Phone: A contact number in case we need contact you
B17: f. Ending date of report: This is the date your books were last completed. It must be a month end date. The dates in all the periods shown below will be automatically populated, each being the month end.
B18: g. Report Password: A password that is used to encrypt your report for security purposes.
B20: 2. Complete the Balance Sheet and Income statement
B21: a. Method 1 – Copy and Paste from 3rd party financial software
D22: Export to Excel
B23: If your 3rd party financial software has the ability export the Balance Sheet and the Income Statement (P&L) to an Excel spreadsheet, moving data will be easier
B24: 1. Open the third party software
B25: 2. Open the Balance Sheet
B26: 3. Modify the balance sheet for 14 monthly periods showing the date as the last day of each month like shown below.
B28: 4. Export the Balance Sheet to Excel (make sure you have no blank columns between the dates).
B29: 5. In the exported spreadsheet, copy and then paste the whole account value into this form.
B30: 6. Repeat for each account.
B31: 7. Now open the Income Statement.
B32: 8. Modify the Income Statement for 13 monthly periods with the date as of the last day of each month. The first period should be the Ending period as in the example shown above.
B33: 9. Export the Income Statement to Excel (make sure you have no blank columns between the dates).
B34: 10. In the exported spreadsheet copy and then paste the whole account value into this form.
B35: 11. Repeat for each account.
B37: b. Method 2 – Copy and paste out of third party software
D38: Direct from 3rd party software:
B39: 1. Open the third party software
B40: 2. Open the Balance Sheet
B41: 3. Modify the balance sheet for 14 monthly periods with the date being the last day of each month like shown above.
B42: 4. Copy and then paste the whole account value into this form.
B43: 5. Repeat for each account.
B44: 6. Now open the Income Statement.
B45: 7. Modify the Income Statement for 13 monthly periods with the date being the last day of each month. The first period should be the Ending period as in the example shown above
B46: 8. Copy and then paste the whole account value to this form.
B47: 9. Repeat for each account.
B49: c. Method 3 – Manual entry
B50: Manually enter the account values according to the account name and date.
B51: Only After First Report. Goals are preset to the top 10% of your industry on your first report and this tab is not available until a first report is run.
B52: 3. Complete the "Goals" Tab. If this is your first report, the goals are automatically set. On your subsequent report you should review the Goals tab to see if the goals need adjustment as the initial goal was set at the top 10% of your industry NAICS code. Select the "Goals" tab and adjust the goals in the yellow cells accordingly. Your last actual and the Industry Averages are shown as a reference.
B53: Notes on form behavior:
B54: 1. Only the cells where you can enter data can be selected.
B55: 2. When you mouse over the account name, a comment box will appear showing you the definition of the account.
B57: 3. The date entered in the cell to the right of "Ending date of report:" is the date you most recently completed entering data into your financial software.
B58: 4. The date entered in cell to the right of "Ending date of report:" will automatically populate the Date cells below the "Periods."
B59: 5. The cells in "Grey" are automatically calculated for you.
B60: 6. The "Balance Sheet Balanced?" tells you if your Balance Sheet is balanced: Assets = Liabilities + Equity
B61: 6a. "Yes" means it is balanced. | C61: 6a. "Yes" means it is balanced. --> | G61: Yes
B62: 6b. A red number with a yellow background tells you how far the balance is off. A positive number means the Assets are greater than the Liabilities + Equity, if negative, Liabilities + Equity are greater than the Assets. | C62: 6b. A red number with a yellow background... | H62: No by 499 | I62: tells you how far the balance is off. A positive number means the Assets are greater than the Liabilities + Equity, if negative Liabilities + Equity are greater than the Assets.
B63: 7. The Red "Clear Form" button clears all the cell data.
B64: 8. The Red "Shift Data 1 Month" button at the top right side of the form moves last month data over one month so only the last column (month books are closed) needs to be entered.
B65: 9. "NA" in the Starting Period in the Income Statement column represents that there is no data to be entered here.

Sheet Goals (hidden)
B2: Company Name | C2: Date of last report
B3: ='Data Entry'!D7 -> John's Diner | C3: ='Data Entry'!$D$11 -> 2016-03-31
B5: Metric | C5: Last report Actuals | D5: Current Goal Can be Adjusted* | E5: Industry Averages
E6: Top | G6: Median | H6: Bottom
E7: 0.1 | F7: 0.25 | G7: 0.5 | H7: 0.25 | I7: 0.1
B8: Current Ratio | E8: =TEXT(RIGHT('NACIS-Data'!H126, LEN('NACIS-Data'!H126)-13),"0.00") ->  | F8: =TEXT(RIGHT('NACIS-Data'!I126, LEN('NACIS-Data'!I126)-13),"0.00") ->  | G8: =TEXT(RIGHT('NACIS-Data'!J126, LEN('NACIS-Data'!J126)-13),"0.00") ->  | H8: =TEXT(RIGHT('NACIS-Data'!K126, LEN('NACIS-Data'!K126)-13),"0.00") ->  | I8: =TEXT(RIGHT('NACIS-Data'!L126, LEN('NACIS-Data'!L126)-13),"0.00") -> 
B9: Quick Ratio | E9: =TEXT(RIGHT('NACIS-Data'!H127, LEN('NACIS-Data'!H127)-11),"0.00") ->  | F9: =TEXT(RIGHT('NACIS-Data'!I127, LEN('NACIS-Data'!I127)-11),"0.00") ->  | G9: =TEXT(RIGHT('NACIS-Data'!J127, LEN('NACIS-Data'!J127)-11),"0.00") ->  | H9: =TEXT(RIGHT('NACIS-Data'!K127, LEN('NACIS-Data'!K127)-11),"0.00") ->  | I9: =TEXT(RIGHT('NACIS-Data'!L127, LEN('NACIS-Data'!L127)-11),"0.00") -> 
B10: Debt-to-Worth | E10: =TEXT(RIGHT('NACIS-Data'!H128, LEN('NACIS-Data'!H128)-12),"0.00") ->  | F10: =TEXT(RIGHT('NACIS-Data'!I128, LEN('NACIS-Data'!I128)-12),"0.00") ->  | G10: =TEXT(RIGHT('NACIS-Data'!J128, LEN('NACIS-Data'!J128)-12),"0.00") ->  | H10: =TEXT(RIGHT('NACIS-Data'!K128, LEN('NACIS-Data'!K128)-12),"0.00") ->  | I10: =TEXT(RIGHT('NACIS-Data'!L128, LEN('NACIS-Data'!L128)-12),"0.00") -> 
B11: Gross Margin | E11: =TEXT(RIGHT('NACIS-Data'!H129, LEN('NACIS-Data'!H129)-13),"0.0%") ->  | F11: =TEXT(RIGHT('NACIS-Data'!I129, LEN('NACIS-Data'!I129)-13),"0.0%") ->  | G11: =TEXT(RIGHT('NACIS-Data'!J129, LEN('NACIS-Data'!J129)-13),"0.0%") ->  | H11: =TEXT(RIGHT('NACIS-Data'!K129, LEN('NACIS-Data'!K129)-13),"0.0%") ->  | I11: =TEXT(RIGHT('NACIS-Data'!L129, LEN('NACIS-Data'!L129)-13),"0.0%") -> 
B12: Net Margin | E12: =TEXT(RIGHT('NACIS-Data'!H130, LEN('NACIS-Data'!H130)-10),"0.0%") ->  | F12: =TEXT(RIGHT('NACIS-Data'!I130, LEN('NACIS-Data'!I130)-10),"0.0%") ->  | G12: =TEXT(RIGHT('NACIS-Data'!J130, LEN('NACIS-Data'!J130)-10),"0.0%") ->  | H12: =TEXT(RIGHT('NACIS-Data'!K130, LEN('NACIS-Data'!K130)-10),"0.0%") ->  | I12: =TEXT(RIGHT('NACIS-Data'!L130, LEN('NACIS-Data'!L130)-10),"0.0%") -> 
B13: Sale to Assets | E13: =TEXT(RIGHT('NACIS-Data'!H131, LEN('NACIS-Data'!H131)-14),"0.00") ->  | F13: =TEXT(RIGHT('NACIS-Data'!I131, LEN('NACIS-Data'!I131)-14),"0.00") ->  | G13: =TEXT(RIGHT('NACIS-Data'!J131, LEN('NACIS-Data'!J131)-14),"0.00") ->  | H13: =TEXT(RIGHT('NACIS-Data'!K131, LEN('NACIS-Data'!K131)-14),"0.00") ->  | I13: =TEXT(RIGHT('NACIS-Data'!L131, LEN('NACIS-Data'!L131)-14),"0.00") -> 
B14: Return on Assets | E14: =TEXT(RIGHT('NACIS-Data'!H132, LEN('NACIS-Data'!H132)-15),"0.0%") ->  | F14: =TEXT(RIGHT('NACIS-Data'!I132, LEN('NACIS-Data'!I132)-15),"0.0%") ->  | G14: =TEXT(RIGHT('NACIS-Data'!J132, LEN('NACIS-Data'!J132)-15),"0.0%") ->  | H14: =TEXT(RIGHT('NACIS-Data'!K132, LEN('NACIS-Data'!K132)-15),"0.0%") ->  | I14: =TEXT(RIGHT('NACIS-Data'!L132, LEN('NACIS-Data'!L132)-15),"0.0%") -> 
B15: Return on Investments | E15: =TEXT(RIGHT('NACIS-Data'!H133, LEN('NACIS-Data'!H133)-20),"0.0%") ->  | F15: =TEXT(RIGHT('NACIS-Data'!I133, LEN('NACIS-Data'!I133)-20),"0.0%") ->  | G15: =TEXT(RIGHT('NACIS-Data'!J133, LEN('NACIS-Data'!J133)-20),"0.0%") ->  | H15: =TEXT(RIGHT('NACIS-Data'!K133, LEN('NACIS-Data'!K133)-20),"0.0%") ->  | I15: =TEXT(RIGHT('NACIS-Data'!L133, LEN('NACIS-Data'!L133)-20),"0.0%") -> 
B16: Inventory Turnover
B17: Inventory Turn-Days | E17: =TEXT(RIGHT('NACIS-Data'!H134, LEN('NACIS-Data'!H134)-18),"0.00") ->  | F17: =TEXT(RIGHT('NACIS-Data'!I134, LEN('NACIS-Data'!I134)-18),"0.00") ->  | G17: =TEXT(RIGHT('NACIS-Data'!J134, LEN('NACIS-Data'!J134)-18),"0.00") ->  | H17: =TEXT(RIGHT('NACIS-Data'!K134, LEN('NACIS-Data'!K134)-18),"0.00") ->  | I17: =TEXT(RIGHT('NACIS-Data'!L134, LEN('NACIS-Data'!L134)-18),"0.00") -> 
B18: Accounts Receivable Turnover
B19: Accounts Receivable Turn-Days | E19: =TEXT(RIGHT('NACIS-Data'!H135, LEN('NACIS-Data'!H135)-27),"0.00") ->  | F19: =TEXT(RIGHT('NACIS-Data'!I135, LEN('NACIS-Data'!I135)-27),"0.00") ->  | G19: =TEXT(RIGHT('NACIS-Data'!J135, LEN('NACIS-Data'!J135)-27),"0.00") ->  | H19: =TEXT(RIGHT('NACIS-Data'!K135, LEN('NACIS-Data'!K135)-27),"0.00") ->  | I19: =TEXT(RIGHT('NACIS-Data'!L135, LEN('NACIS-Data'!L135)-27),"0.00") -> 
B20: Accounts Payable Turnover
B21: Average Payment Period | E21: =TEXT(RIGHT('NACIS-Data'!H136, LEN('NACIS-Data'!H136)-21),"0.00") ->  | F21: =TEXT(RIGHT('NACIS-Data'!I136, LEN('NACIS-Data'!I136)-21),"0.00") ->  | G21: =TEXT(RIGHT('NACIS-Data'!J136, LEN('NACIS-Data'!J136)-21),"0.00") ->  | H21: =TEXT(RIGHT('NACIS-Data'!K136, LEN('NACIS-Data'!K136)-21),"0.00") ->  | I21: =TEXT(RIGHT('NACIS-Data'!L136, LEN('NACIS-Data'!L136)-21),"0.00") -> 
B23: *Note: Only the yellow cells are editable

Sheet NACIS-Data (hidden)
H1: =CONCATENATE("CompanyName=",'Data Entry'!D7) -> CompanyName=John's Diner
H2: =CONCATENATE("Email=",'Data Entry'!D8) -> Email=johndoe@email.com
H3: =CONCATENATE("IndustryCode=",'Data Entry'!D9) -> IndustryCode=332813 | N3: PRODUCTS
H4: =CONCATENATE("PhoneNumber=",'Data Entry'!D10) -> PhoneNumber=707-587-2341 | N4: Profit Gap | O4: 3
H5: =CONCATENATE("UserName=",'Data Entry'!D11) -> UserName=42460 | N5: Game Plan Tracker | O5: 2
H6: =CONCATENATE("UserId=",'Data Entry'!D12) -> UserId=password | N6: eFO Collier Consulting Group | O6: 10
H7: UserTier=7 | N7: eFO | O7: 1
H8: =CONCATENATE("Name=",'Data Entry'!D6) -> Name=John Doe | N8: eFO Sidekick | O8: 20
H9: =CONCATENATE("ReportPassword=",'Data Entry'!D12) -> ReportPassword=password | N9: Profit Gap SBDC | O9: 7
H10: =CONCATENATE("OptionA=",'Data Entry'!D16) -> OptionA=
H11: =CONCATENATE("OptionB=",'Data Entry'!D17) -> OptionB=
H12: =CONCATENATE("OptionC=",'Data Entry'!D18) -> OptionC=
H13: =CONCATENATE("CurrentGoal_CurrentRatio=",Goals!D8) -> CurrentGoal_CurrentRatio= | R13: Getting data for code: 236115
H14: =CONCATENATE("CurrentGoal_QuickRatio=",Goals!D9) -> CurrentGoal_QuickRatio= | R14: CollectionPeriod
H15: =CONCATENATE("CurrentGoal_DebtToWorth=",Goals!D10) -> CurrentGoal_DebtToWorth= | R15: -----------------
H16: =CONCATENATE("CurrentGoal_GrossMargin=",Goals!D11) -> CurrentGoal_GrossMargin= | R16: 10 = 4.9305470885630275022178803296
H17: =CONCATENATE("CurrentGoal_NetMargin=",Goals!D12) -> CurrentGoal_NetMargin= | R17: 25 = 10.533798296329553298653984406
H18: =CONCATENATE("CurrentGoal_SalesToAssets=",Goals!D13) -> CurrentGoal_SalesToAssets= | R18: 50 = 12.155863385623666995960333167
H19: =CONCATENATE("CurrentGoal_ReturnOnAssets=",Goals!D14) -> CurrentGoal_ReturnOnAssets= | R19: 75 = 14.252421642314305000192151913
H20: =CONCATENATE("CurrentGoal_ReturnOnInvestments=",Goals!D15) -> CurrentGoal_ReturnOnInvestments= | R20: 90 = 17.998982425572446833477077894
H21: =CONCATENATE("CurrentGoal_InventoryTurnDays=",Goals!D17) -> CurrentGoal_InventoryTurnDays= | R21: CurrentRatio
H22: =CONCATENATE("CurrentGoal_AccountsReceivableTurnDays=",Goals!D19) -> CurrentGoal_AccountsReceivableTurnDays= | R22: -----------------
H23: =CONCATENATE("CurrentGoal_AveragePaymentPeriod=",Goals!D21) -> CurrentGoal_AveragePaymentPeriod= | R23: 10 = 1.6668312141650137815918103756
H24: LastGoal_CurrentRatio= | R24: 25 = 1.7757485814816503826137267796
H25: LastGoal_QuickRatio= | R25: 50 = 1.8972557897011710437373333981
H26: LastGoal_DebtToWorth= | R26: 75 = 1.9474963035185707920088011330
H27: LastGoal_GrossMargin= | R27: 90 = 2.0603608008779079072267880908
H28: LastGoal_NetMargin= | R28: QuickRatio
H29: LastGoal_SalesToAssets= | R29: -----------------
H30: LastGoal_ReturnOnAssets= | R30: 10 = 0.5073493520650875174289691217
H31: LastGoal_ReturnOnInvestments= | R31: 25 = 0.6217897581166831371870475998
H32: LastGoal_InventoryTurnDays= | R32: 50 = 0.7375874593670237945341362886
H33: LastGoal_AccountsReceivableTurnDays= | R33: 75 = 0.8289053326760963355354789879
H34: LastGoal_AveragePaymentPeriod= | R34: 90 = 0.9389262651641256841341852873
H35: Actual_CurrentRatio= | R35: TotalLiabilitiesToNetWorth
H36: Actual_QuickRatio= | R36: -----------------
H37: Actual_DebtToWorth= | R37: 10 = 1.4018288644686255577606583489
H38: Actual_GrossMargin= | R38: 25 = 1.6193883326680469248874799273
H39: Actual_NetMargin= | R39: 50 = 1.8333353140136401206124250014
H40: Actual_SalesToAssets= | R40: 75 = 2.0142145063365325557192220531
H41: Actual_ReturnOnAssets= | R41: 90 = 2.5143951187969059580617416493
H42: Actual_ReturnOnInvestments= | R42: GrossProfitMargin
H43: Actual_InventoryTurnDays= | R43: -----------------
H44: Actual_AccountsReceivableTurnDays= | R44: 10 = 0.30172364345369260
H45: Actual_AveragePaymentPeriod= | R45: 25 = 0.493325115904637000
H46: =CONCATENATE("Industry10_",H126) ->  | R46: 50 = 0.6473237183559530
H47: =CONCATENATE("Industry10_",H127) ->  | R47: 75 = 0.695069689281867000
R48: 90 = 0.73931123891967020
R49: ReturnOnSales
R50: -----------------
R51: 10 = 0.02996727468399056
R52: 25 = 0.030860993024108100
R53: 50 = 0.0319702435210559
R54: 75 = 0.033003419544201100
R55: 90 = 0.03475603728993320
R56: AssetsToSales
H57: =CONCATENATE("Industry25_",I126) ->  | R57: -----------------
H58: =CONCATENATE("Industry25_",I127) ->  | R58: 10 = 0.2900977862360172604446055160
R59: 25 = 0.3226953120343196898451883523
R60: 50 = 0.351461208133375629184414803
R61: 75 = 0.3780094024976577374925736419
R62: 90 = 0.4297773761382007774746073787
R63: ReturnOnAssets
R64: -----------------
R65: 10 = 0.0723685810224822033542445058
R66: 25 = 0.0818221060611924347452343414
R67: 50 = 0.0916219491929227518418044682
H68: =CONCATENATE("Industry50_",J126) ->  | R68: 75 = 0.0995170265809193596451599355
H69: =CONCATENATE("Industry50_",J127) ->  | R69: 90 = 0.1101083359790166081305329686
R70: ReturnOnInvestment
R71: -----------------
R72: 10 = 0.1891853600474191850331442012
R73: 25 = 0.2237004794742308685186920236
R74: 50 = 0.2577647109518838319368958944
R75: 75 = 0.2902185359911921399428539283
R76: 90 = 0.3663182363938802957404465998
R77: InventoryTurnover
R78: -----------------
H79: =CONCATENATE("Industry75_",K126) ->  | R79: 10 = 0.0
H80: =CONCATENATE("Industry75_",K127) ->  | R80: 25 = 0.00
R81: 50 = 0
R82: 75 = 1.6648589156927562583474171130
R83: 90 = 898.5650867705446826511544234
R84: DaysPay
R85: -----------------
R86: 10 = 18.380641859065905318020576815
R87: 25 = 21.997656139480352952108749760
R88: 50 = 31.640480233497433402277495251
R89: 75 = 39.444917132357368106957401724
H90: =CONCATENATE("Industry90_",L126) ->  | R90: 90 = 54.371802155702941085426037259
H91: =CONCATENATE("Industry90_",L127) -> 
A99: Real 2007 and 2012 NAICS Codes
A101: 111100 | H101: RecurlyAddress1=
A102: 111110 | H102: RecurlyAddress2=
A103: 111120 | H103: RecurlyCity=
A104: 111130 | H104: RecurlyState=
A105: 111140 | H105: RecurlyCountry=
A106: 111150 | H106: RecurlyZip=62864
A107: 111160 | H107: RecurlySubscriptionPlan=pg_platinum_month
A108: 111190 | H108: RecurlyUnitAmountInCents=19999
A109: 111191 | H109: RecurlyCouponCode=
A110: 111199 | H110: RecurlyCouponCode=
A111: 111200
A112: 111210
A113: 111211
A114: 111219 | C114: Top 10% | G114: =RIGHT(SUBSTITUTE(SUBSTITUTE(SUBSTITUTE($D114,"""",""),":","="),"}",""),LEN(SUBSTITUTE(SUBSTITUTE(SUBSTITUTE($D114,"""",""),":","="),"}",""))-28) -> 
A115: 111300 | C115: Top 25% | G115: =RIGHT(SUBSTITUTE(SUBSTITUTE(SUBSTITUTE($D115,"""",""),":","="),"}",""),LEN(SUBSTITUTE(SUBSTITUTE(SUBSTITUTE($D115,"""",""),":","="),"}",""))-28) -> 
A116: 111310 | C116: Median | G116: =RIGHT(SUBSTITUTE(SUBSTITUTE(SUBSTITUTE($D116,"""",""),":","="),"}",""),LEN(SUBSTITUTE(SUBSTITUTE(SUBSTITUTE($D116,"""",""),":","="),"}",""))-28) -> 
A117: 111320 | C117: Bottom 25% | G117: =RIGHT(SUBSTITUTE(SUBSTITUTE(SUBSTITUTE($D117,"""",""),":","="),"}",""),LEN(SUBSTITUTE(SUBSTITUTE(SUBSTITUTE($D117,"""",""),":","="),"}",""))-28) -> 
A118: 111330 | C118: Bottom 10% | G118: =RIGHT(SUBSTITUTE(SUBSTITUTE(SUBSTITUTE($D118,"""",""),":","="),"}",""),LEN(SUBSTITUTE(SUBSTITUTE(SUBSTITUTE($D118,"""",""),":","="),"}",""))-28) -> 
A119: 111331
A120: 111332
A121: 111333
A122: 111334
A123: 111335
A124: 111336
A125: 111339 | H125: Top 10% | I125: Top 25% | J125: Median | K125: Bottom 25% | L125: Bottom 10%
A126: 111400 | H126: =TRIM(MID(SUBSTITUTE($G$114,",",REPT(" ",500)),(ROWS($1:1)-1)*500+1,500)) ->  | I126: =TRIM(MID(SUBSTITUTE($G$115,",",REPT(" ",500)),(ROWS($1:1)-1)*500+1,500)) ->  | J126: =TRIM(MID(SUBSTITUTE($G$116,",",REPT(" ",500)),(ROWS($1:1)-1)*500+1,500)) ->  | K126: =TRIM(MID(SUBSTITUTE($G$117,",",REPT(" ",500)),(ROWS($1:1)-1)*500+1,500)) ->  | L126: =TRIM(MID(SUBSTITUTE($G$118,",",REPT(" ",500)),(ROWS($1:1)-1)*500+1,500)) -> 
A127: 111410 | H127: =TRIM(MID(SUBSTITUTE($G$114,",",REPT(" ",500)),(ROWS($1:2)-1)*500+1,500)) ->  | I127: =TRIM(MID(SUBSTITUTE($G$115,",",REPT(" ",500)),(ROWS($1:2)-1)*500+1,500)) ->  | J127: =TRIM(MID(SUBSTITUTE($G$116,",",REPT(" ",500)),(ROWS($1:2)-1)*500+1,500)) ->  | K127: =TRIM(MID(SUBSTITUTE($G$117,",",REPT(" ",500)),(ROWS($1:2)-1)*500+1,500)) ->  | L127: =TRIM(MID(SUBSTITUTE($G$118,",",REPT(" ",500)),(ROWS($1:2)-1)*500+1,500)) -> 
A128: 111411 | H128: =TRIM(MID(SUBSTITUTE($G$114,",",REPT(" ",500)),(ROWS($1:3)-1)*500+1,500)) ->  | I128: =TRIM(MID(SUBSTITUTE($G$115,",",REPT(" ",500)),(ROWS($1:3)-1)*500+1,500)) ->  | J128: =TRIM(MID(SUBSTITUTE($G$116,",",REPT(" ",500)),(ROWS($1:3)-1)*500+1,500)) ->  | K128: =TRIM(MID(SUBSTITUTE($G$117,",",REPT(" ",500)),(ROWS($1:3)-1)*500+1,500)) ->  | L128: =TRIM(MID(SUBSTITUTE($G$118,",",REPT(" ",500)),(ROWS($1:3)-1)*500+1,500)) -> 
A129: 111419 | H129: =TRIM(MID(SUBSTITUTE($G$114,",",REPT(" ",500)),(ROWS($1:4)-1)*500+1,500)) ->  | I129: =TRIM(MID(SUBSTITUTE($G$115,",",REPT(" ",500)),(ROWS($1:4)-1)*500+1,500)) ->  | J129: =TRIM(MID(SUBSTITUTE($G$116,",",REPT(" ",500)),(ROWS($1:4)-1)*500+1,500)) ->  | K129: =TRIM(MID(SUBSTITUTE($G$117,",",REPT(" ",500)),(ROWS($1:4)-1)*500+1,500)) ->  | L129: =TRIM(MID(SUBSTITUTE($G$118,",",REPT(" ",500)),(ROWS($1:4)-1)*500+1,500)) -> 
A130: 111420 | H130: =TRIM(MID(SUBSTITUTE($G$114,",",REPT(" ",500)),(ROWS($1:5)-1)*500+1,500)) ->  | I130: =TRIM(MID(SUBSTITUTE($G$115,",",REPT(" ",500)),(ROWS($1:5)-1)*500+1,500)) ->  | J130: =TRIM(MID(SUBSTITUTE($G$116,",",REPT(" ",500)),(ROWS($1:5)-1)*500+1,500)) ->  | K130: =TRIM(MID(SUBSTITUTE($G$117,",",REPT(" ",500)),(ROWS($1:5)-1)*500+1,500)) ->  | L130: =TRIM(MID(SUBSTITUTE($G$118,",",REPT(" ",500)),(ROWS($1:5)-1)*500+1,500)) -> 
A131: 111421 | H131: =TRIM(MID(SUBSTITUTE($G$114,",",REPT(" ",500)),(ROWS($1:6)-1)*500+1,500)) ->  | I131: =TRIM(MID(SUBSTITUTE($G$115,",",REPT(" ",500)),(ROWS($1:6)-1)*500+1,500)) ->  | J131: =TRIM(MID(SUBSTITUTE($G$116,",",REPT(" ",500)),(ROWS($1:6)-1)*500+1,500)) ->  | K131: =TRIM(MID(SUBSTITUTE($G$117,",",REPT(" ",500)),(ROWS($1:6)-1)*500+1,500)) ->  | L131: =TRIM(MID(SUBSTITUTE($G$118,",",REPT(" ",500)),(ROWS($1:6)-1)*500+1,500)) -> 
A132: 111422 | H132: =TRIM(MID(SUBSTITUTE($G$114,",",REPT(" ",500)),(ROWS($1:7)-1)*500+1,500)) ->  | I132: =TRIM(MID(SUBSTITUTE($G$115,",",REPT(" ",500)),(ROWS($1:7)-1)*500+1,500)) ->  | J132: =TRIM(MID(SUBSTITUTE($G$116,",",REPT(" ",500)),(ROWS($1:7)-1)*500+1,500)) ->  | K132: =TRIM(MID(SUBSTITUTE($G$117,",",REPT(" ",500)),(ROWS($1:7)-1)*500+1,500)) ->  | L132: =TRIM(MID(SUBSTITUTE($G$118,",",REPT(" ",500)),(ROWS($1:7)-1)*500+1,500)) -> 
A133: 111900 | H133: =TRIM(MID(SUBSTITUTE($G$114,",",REPT(" ",500)),(ROWS($1:8)-1)*500+1,500)) ->  | I133: =TRIM(MID(SUBSTITUTE($G$115,",",REPT(" ",500)),(ROWS($1:8)-1)*500+1,500)) ->  | J133: =TRIM(MID(SUBSTITUTE($G$116,",",REPT(" ",500)),(ROWS($1:8)-1)*500+1,500)) ->  | K133: =TRIM(MID(SUBSTITUTE($G$117,",",REPT(" ",500)),(ROWS($1:8)-1)*500+1,500)) ->  | L133: =TRIM(MID(SUBSTITUTE($G$118,",",REPT(" ",500)),(ROWS($1:8)-1)*500+1,500)) -> 
A134: 111910 | H134: =TRIM(MID(SUBSTITUTE($G$114,",",REPT(" ",500)),(ROWS($1:9)-1)*500+1,500)) ->  | I134: =TRIM(MID(SUBSTITUTE($G$115,",",REPT(" ",500)),(ROWS($1:9)-1)*500+1,500)) ->  | J134: =TRIM(MID(SUBSTITUTE($G$116,",",REPT(" ",500)),(ROWS($1:9)-1)*500+1,500)) ->  | K134: =TRIM(MID(SUBSTITUTE($G$117,",",REPT(" ",500)),(ROWS($1:9)-1)*500+1,500)) ->  | L134: =TRIM(MID(SUBSTITUTE($G$118,",",REPT(" ",500)),(ROWS($1:9)-1)*500+1,500)) -> 
A135: 111920 | H135: =TRIM(MID(SUBSTITUTE($G$114,",",REPT(" ",500)),(ROWS($1:10)-1)*500+1,500)) ->  | I135: =TRIM(MID(SUBSTITUTE($G$115,",",REPT(" ",500)),(ROWS($1:10)-1)*500+1,500)) ->  | J135: =TRIM(MID(SUBSTITUTE($G$116,",",REPT(" ",500)),(ROWS($1:10)-1)*500+1,500)) ->  | K135: =TRIM(MID(SUBSTITUTE($G$117,",",REPT(" ",500)),(ROWS($1:10)-1)*500+1,500)) ->  | L135: =TRIM(MID(SUBSTITUTE($G$118,",",REPT(" ",500)),(ROWS($1:10)-1)*500+1,500)) -> 
A136: 111930 | H136: =TRIM(MID(SUBSTITUTE($G$114,",",REPT(" ",500)),(ROWS($1:11)-1)*500+1,500)) ->  | I136: =TRIM(MID(SUBSTITUTE($G$115,",",REPT(" ",500)),(ROWS($1:11)-1)*500+1,500)) ->  | J136: =TRIM(MID(SUBSTITUTE($G$116,",",REPT(" ",500)),(ROWS($1:11)-1)*500+1,500)) ->  | K136: =TRIM(MID(SUBSTITUTE($G$117,",",REPT(" ",500)),(ROWS($1:11)-1)*500+1,500)) ->  | L136: =TRIM(MID(SUBSTITUTE($G$118,",",REPT(" ",500)),(ROWS($1:11)-1)*500+1,500)) -> 
A137: 111940
A138: 111990
A139: 111991
A140: 111992
A141: 111998
A142: 112100
A143: 112110
A144: 112111
A145: 112112
A146: 112120
A147: 112130
A148: 112200
A149: 112210
A150: 112300
A151: 112310
A152: 112320
A153: 112330
A154: 112340
A155: 112390
A156: 112400
A157: 112410
A158: 112420
A159: 112500
A160: 112510
A161: 112511
A162: 112512
A163: 112519
A164: 112900
A165: 112910
A166: 112920
A167: 112930
A168: 112990
A169: 113100
A170: 113110
A171: 113200
A172: 113210
A173: 113300
A174: 113310
A175: 114100
A176: 114110
A177: 114111
A178: 114112
A179: 114119
A180: 114200
A181: 114210
A182: 115100
A183: 115110
A184: 115111
A185: 115112
A186: 115113
A187: 115114
A188: 115115
A189: 115116
A190: 115200
A191: 115210
A192: 115300
A193: 115310
A194: 211100
A195: 211110
A196: 211111
A197: 211112
A198: 212100
A199: 212110
A200: 212111
A201: 212112
A202: 212113
A203: 212200
A204: 212210
A205: 212220
A206: 212221
A207: 212222
A208: 212230
... 1596 more rows
